bitfinex-derivatives/quotes_SOLF0:USTF0_20240925
["timestamp","ask_amount","ask_price","bid_price","bid_amount"]
[1727265003727,8.17,150.76,150.7,8.17]
[1727265004034,11.4866,150.76,150.7,8.17]
[1727265004235,1.3596,150.82,150.67,1.323]
[1727265004236,8.17,150.75,150.67,1.323]
[1727265004430,8.17,150.75,150.69,8.17]
[1727265005330,8.17,150.75,150.72,3.3173]
[1727265007030,39.96699673,150.82,150.67,8.17]
[1727265007232,8.17,150.73,150.68,8.17]
[1727265007433,2.6673,150.75,150.71,11.4876]
[1727265007434,5.9842,150.75,150.71,11.4876]
[1727265007830,2.6673,150.75,150.66,88.52771349]
[1727265008135,8.17,150.71,150.68,3.3183]
[1727265008334,8.17,150.72,150.68,8.17]
[1727265008841,8.17,150.72,150.69,3.318]
[1727265009046,8.17,150.73,150.69,8.17]
[1727265009245,8.17,150.73,150.66,88.52771349]
[1727265009246,12.1994,150.75,150.7,8.17]
[1727265009543,15.5164,150.75,150.7,8.17]
[1727265009940,15.5164,150.75,150.71,3.3177]
[1727265010943,15.5164,150.75,150.7,8.17]
[1727265010944,8.17,150.73,150.7,3.3178]
[1727265011343,8.17,150.72,150.69,3.318]
[1727265011743,4.0294,150.75,150.68,8.17]
[1727265011946,11.4872,150.74,150.7,3.3178]
[1727265016742,11.4873,150.73,150.7,3.3178]
[1727265017045,11.4873,150.73,150.69,3.3181]
[1727265017752,4.0294,150.75,150.69,3.3181]
[1727265017753,11.4876,150.72,150.69,3.3181]
[1727265019254,11.4876,150.72,150.68,3.3182]
[1727265019844,11.4876,150.72,150.69,3.3182]
[1727265022556,8.17,150.73,150.7,3.3179]
[1727265023556,8.17,150.73,150.71,3.3177]
[1727265026857,8.17,150.73,150.7,3.3179]
[1727265027560,8.17,150.73,150.71,3.3177]
[1727265028358,3.3172,150.74,150.71,3.3177]
[1727265028660,8.17,150.73,150.71,3.3177]
[1727265029364,3.3172,150.74,150.71,3.3177]
[1727265029558,8.17,150.73,150.71,3.3177]
[1727265031756,3.3172,150.74,150.71,3.3177]
[1727265031958,8.17,150.73,150.71,3.3177]
[1727265041055,8.17,150.73,150.7,3.3179]
[1727265044668,2.6673,150.75,150.69,8.17]
[1727265044970,2.6673,150.75,150.66,88.52771349]
[1727265044971,8.17,150.77,150.71,8.17]
[1727265045174,8.17,150.77,150.75,3.3168]
[1727265045374,8.17,150.77,150.71,8.17]
[1727265046375,11.4865,150.77,150.74,3.317]
[1727265047371,8.17,150.75,150.73,3.3173]
[1727265047570,8.17,150.74,150.69,8.17]
[1727265047772,8.17,150.74,150.71,3.3176]
[1727265047973,3.3167,150.76,150.69,8.17]
[1727265048273,8.17,150.74,150.69,8.17]
[1727265048474,8.17,150.74,150.72,3.3174]
[1727265050778,8.17,150.73,150.71,3.3176]
[1727265051579,8.17,150.72,150.67,8.17]
[1727265052372,8.17,150.73,150.68,8.17]
[1727265052981,8.17,150.73,150.7,3.3178]
[1727265057576,8.17,150.73,150.71,3.3177]
[1727265060181,8.17,150.73,150.7,3.3179]
[1727265060485,8.17,150.72,150.7,3.3179]
[1727265062892,8.17,150.71,150.63,96.7463476]
[1727265063081,8.17,150.71,150.66,8.17]
[1727265063482,8.17,150.71,150.67,6.89030576]
[1727265063702,8.17,150.71,150.69,3.318]
[1727265064294,7.9052,150.8,150.71,3.3177]
[1727265064590,8.17,150.73,150.71,3.3177]
[1727265065389,1.2734,150.8,150.7,8.17]
[1727265065587,8.17,150.75,150.7,8.17]
[1727265066388,1.2734,150.8,150.72,8.17]
[1727265066589,8.17,150.77,150.72,8.17]
[1727265066790,8.17,150.77,150.74,3.3169]
[1727265067290,3.3161,150.79,150.75,3.3169]
[1727265067492,8.17,150.77,150.75,3.3169]
[1727265071585,3.3162,150.78,150.75,3.3169]
[1727265071787,8.17,150.77,150.75,3.3169]
[1727265072592,8.17,150.77,150.74,3.3171]
[1727265072892,8.17,150.76,150.74,3.3171]
[1727265073298,8.17,150.75,150.73,3.3172]
[1727265075292,8.17,150.77,150.74,3.3171]
[1727265076901,8.17,150.76,150.74,3.3171]
[1727265077991,3.3164,150.78,150.74,3.3171]
[1727265078202,8.17,150.76,150.74,3.3171]
[1727265078699,3.3161,150.79,150.72,8.17]
[1727265078893,1.2734,150.8,150.75,8.17]
[1727265079097,9.4434,150.8,150.75,8.17]
[1727265079901,9.4434,150.8,150.76,3.3165]
[1727265081304,8.17,150.79,150.76,3.3165]
[1727265081505,8.17,150.77,150.75,3.3168]
[1727265082402,8.17,150.77,150.74,3.317]
[1727265092906,8.17,150.76,150.74,3.317]
[1727265093508,8.17,150.76,150.73,3.3172]
[1727265095217,8.17,150.74,150.66,9.51897779]
[1727265095516,8.17,150.74,150.68,8.17]
[1727265095709,8.17,150.74,150.69,6.88664198]
[1727265095911,11.4871,150.74,150.7,10.20444198]
[1727265096114,11.4871,150.74,150.68,8.17]
[1727265096313,11.4871,150.74,150.69,6.88713102]
[1727265096512,11.4871,150.74,150.7,10.20493102]
[1727265096714,11.4871,150.74,150.7,3.3178]
[1727265097114,11.4871,150.74,150.71,3.3177]
[1727265098316,8.17,150.72,150.7,3.3179]
[1727265099019,8.17,150.71,150.65,2.6813]
[1727265099314,8.17,150.7,150.66,22.51195287]
[1727265099518,8.17,150.7,150.67,6.89032048]
[1727265099713,8.17,150.7,150.65,8.17]
[1727265099910,8.17,150.7,150.66,17.91683156]
[1727265100115,8.17,150.7,150.67,6.89108906]
[1727265100318,8.17,150.7,150.65,8.17]
[1727265100518,8.17,150.7,150.66,17.91726924]
[1727265100720,8.17,150.7,150.67,6.8912574]
[1727265100921,8.17,150.7,150.68,3.3184]
[1727265101714,8.17,150.71,150.68,3.3184]
[1727265104421,1.2734,150.8,150.68,8.17]
[1727265104620,8.17,150.74,150.69,8.17]
[1727265105118,1.2734,150.8,150.7,8.17]
[1727265105320,8.17,150.76,150.67,4.59786119]
[1727265105520,8.17,150.76,150.71,8.17]
[1727265106024,11.4868,150.76,150.72,3.3174]
[1727265109029,8.17,150.74,150.68,8.17]
[1727265109327,8.17,150.73,150.69,6.89141523]
[1727265109525,8.17,150.73,150.68,8.17]
[1727265109932,8.17,150.73,150.7,3.3178]
[1727265116331,8.17,150.71,150.69,3.3181]
[1727265116829,8.17,150.7,150.69,3.3181]
[1727265117030,8.17,150.7,150.68,3.3183]
[1727265117333,8.17,150.7,150.66,8.17]
[1727265117529,8.17,150.7,150.67,6.89352433]
[1727265117829,8.17,150.7,150.68,3.3182]
[1727265119133,8.17,150.71,150.69,3.3182]
[1727265121032,3.3175,150.72,150.69,3.3182]
[1727265121229,8.17,150.71,150.69,3.3182]
[1727265123833,8.17,150.73,150.7,3.318]
[1727265124028,11.4872,150.74,150.7,3.318]
[1727265124432,11.4872,150.74,150.7,3.3179]
[1727265127138,8.17,150.72,150.7,3.3179]
[1727265131642,8.17,150.72,150.69,3.318]
[1727265131941,8.17,150.72,150.67,8.17]
[1727265132143,8.17,150.72,150.68,6.90862434]
[1727265132442,8.17,150.72,150.69,3.3181]
[1727265138049,8.17,150.72,150.7,3.3178]
[1727265138246,8.17,150.72,150.68,8.17]
[1727265138450,1.2734,150.8,150.68,8.17]
[1727265138748,8.17,150.74,150.71,3.3176]
[1727265140462,3.3168,150.76,150.72,3.3175]
[1727265140655,8.17,150.74,150.72,3.3175]
[1727265143155,8.17,150.73,150.72,3.3175]
[1727265143351,8.17,150.73,150.71,3.3176]
[1727265149863,8.17,150.72,150.65,8.22600606]
[1727265150067,8.17,150.7,150.66,22.58214948]
[1727265150267,8.17,150.7,150.67,17.97421281]
[1727265150467,8.17,150.7,150.68,6.91199483]
[1727265150668,8.17,150.7,150.69,3.3182]
[1727265152771,8.17,150.72,150.7,3.318]
[1727265155776,8.17,150.73,150.71,3.3177]
[1727265160977,3.317,150.75,150.71,3.3177]
[1727265161178,8.17,150.74,150.71,3.3177]
[1727265165575,11.4871,150.74,150.7,3.3179]
[1727265166070,8.17,150.72,150.71,6.92300896]
[1727265167273,8.17,150.72,150.65,88.53729015]
[1727265167274,7.9052,150.8,150.69,8.17]
[1727265167476,8.17,150.74,150.71,3.3176]
[1727265168174,1.2734,150.8,150.71,8.17]
[1727265168372,8.17,150.78,150.73,8.17]
[1727265168579,1.2734,150.8,150.75,8.17]
[1727265168884,259.42800881,150.96,150.7,6.6359]
[1727265168885,226.0,150.96,150.7,6.6359]
[1727265169075,3.3146,150.86,150.79,8.17]
[1727265169274,2.6181,150.87,150.8,8.17]
[1727265169573,8.17,150.86,150.8,8.17]
[1727265170276,8.17,150.85,150.8,8.17]
[1727265170777,8.17,150.85,150.81,3.3154]
[1727265171178,8.17,150.83,150.79,8.17]
[1727265171482,8.17,150.85,150.8,8.17]
[1727265172385,8.17,150.85,150.81,3.3155]
[1727265173387,3.3145,150.86,150.81,3.3155]
[1727265173679,8.17,150.85,150.81,3.3155]
[1727265178193,8.17,150.84,150.8,11.4856]
[1727265178486,8.17,150.84,150.78,8.17]
[1727265178686,11.4849,150.84,150.79,3.3158]
[1727265179287,11.4849,150.84,150.78,8.17]
[1727265180488,8.17,150.82,150.77,8.17]
[1727265181189,8.17,150.82,150.79,3.316]
[1727265182788,8.17,150.82,150.78,3.3161]
[1727265186690,8.17,150.81,150.78,3.3161]
[1727265186891,3.3151,150.83,150.78,3.3161]
[1727265187095,8.17,150.82,150.79,3.3159]
[1727265190300,3.3147,150.85,150.81,3.3155]
[1727265190493,8.17,150.84,150.81,3.3155]
[1727265191297,11.4847,150.85,150.81,3.3155]
[1727265196806,11.4847,150.85,150.8,8.17]
[1727265196807,11.4849,150.84,150.8,3.3157]
[1727265201308,3.3151,150.83,150.79,3.3159]
[1727265201500,8.17,150.82,150.79,3.3159]
[1727265201900,8.17,150.82,150.8,3.3158]
[1727265202513,8.17,150.82,150.79,3.316]
[1727265204610,11.4853,150.82,150.78,3.3161]
[1727265205113,11.4853,150.82,150.77,8.17]
[1727265205114,8.17,150.82,150.77,8.17]
[1727265206901,8.17,150.82,150.79,3.3159]
[1727265216315,3.3152,150.83,150.79,3.3159]
[1727265216515,1.2758,150.86,150.79,8.17]
[1727265216722,8.17,150.85,150.8,8.17]
[1727265217421,11.4849,150.85,150.8,11.4857]
[1727265218709,8.17,150.84,150.8,3.3157]
[1727265220217,11.4849,150.84,150.8,3.3157]
[1727265228325,3.3149,150.84,150.8,3.3157]
[1727265228629,8.17,150.83,150.8,3.3157]
[1727265229825,8.17,150.82,150.79,3.3159]
[1727265230622,3.3151,150.83,150.79,3.3159]
[1727265230827,8.17,150.82,150.79,3.3159]
[1727265232431,11.485,150.84,150.8,3.3157]
[1727265237928,11.485,150.84,150.81,6.90676991]
[1727265238133,11.485,150.84,150.8,3.3157]
[1727265238333,11.485,150.84,150.81,3.3155]
[1727265238834,11.485,150.84,150.8,11.4856]
[1727265239335,4.5904,150.86,150.81,18.3900678]
[1727265239634,1.2758,150.86,150.82,8.17]
[1727265239831,1.2758,150.86,150.83,3.3151]
[1727265241632,9.4458,150.86,150.83,3.3151]
[1727265241838,12.7603,150.86,150.83,3.3151]
[1727265242028,12.7603,150.86,150.82,3.3152]
[1727265242236,8.17,150.85,150.82,3.3152]
[1727265243934,11.4847,150.85,150.82,3.3152]
[1727265244330,11.4847,150.85,150.81,3.3154]
[1727265245933,8.17,150.83,150.8,3.3157]
[1727265246238,11.4849,150.84,150.8,3.3157]
[1727265251241,11.4849,150.84,150.81,6.90156059]
[1727265251444,11.4849,150.84,150.8,3.3157]
[1727265251645,11.4849,150.84,150.81,6.90177341]
[1727265251843,11.4849,150.84,150.8,3.3157]
[1727265252045,11.4849,150.84,150.81,6.90177341]
[1727265252246,11.4849,150.84,150.8,3.3157]
[1727265252446,11.4849,150.84,150.81,6.90227445]
[1727265252650,11.4849,150.84,150.8,3.3157]
[1727265252947,11.4849,150.84,150.81,6.90227445]
[1727265253152,11.4849,150.84,150.8,3.3157]
[1727265253346,11.4849,150.84,150.81,6.90227445]
[1727265253549,11.4849,150.84,150.8,3.3157]
[1727265253747,11.4849,150.84,150.81,6.90235682]
[1727265253949,3.3148,150.85,150.8,3.3157]
[1727265254144,8.17,150.84,150.81,6.90283133]
[1727265254451,8.17,150.84,150.8,3.3157]
[1727265254650,8.17,150.84,150.81,6.90296266]
[1727265254840,3.3148,150.85,150.8,3.3157]
[1727265255047,5.9002,150.86,150.82,3.3153]
[1727265255647,1.334,150.87,150.84,8.17]
[1727265255843,8.17,150.88,150.84,8.17]
[1727265256050,11.4837,150.9,150.86,3.3144]
[1727265257447,11.4837,150.9,150.85,3.3146]
[1727265258551,4.6679,150.91,150.86,3.3144]
[1727265258748,12.8379,150.91,150.86,11.4844]
[1727265259452,3.3136,150.9,150.86,11.4844]
[1727265259658,8.17,150.89,150.82,4.59309378]
[1727265259953,8.17,150.88,150.83,17.90387329]
[1727265260158,8.17,150.88,150.82,8.17]
[1727265260159,8.17,150.88,150.84,6.88610511]
[1727265260357,8.17,150.88,150.84,3.3147]
[1727265260861,8.17,150.88,150.85,3.3147]
[1727265261963,8.17,150.88,150.83,8.17]
[1727265261964,8.17,150.88,150.84,3.3148]
[1727265264353,3.3139,150.89,150.85,3.3147]
[1727265264558,11.4839,150.89,150.85,3.3147]
[1727265265061,11.4839,150.89,150.85,11.4847]
[1727265265657,3.3139,150.89,150.85,11.4847]
[1727265269070,8.17,150.88,150.84,3.3148]
[1727265269868,8.17,150.88,150.83,8.17]
[1727265270271,3.3139,150.89,150.85,8.17]
[1727265270974,3.3139,150.89,150.85,11.4846]
[1727265271368,11.4839,150.89,150.85,11.4846]
[1727265272473,11.4839,150.89,150.85,3.3146]
[1727265272770,12.7977,150.9,150.86,3.3144]
[1727265273566,4.6277,150.9,150.86,3.3144]
[1727265273767,12.7977,150.9,150.86,3.3144]
[1727265275261,12.7977,150.9,150.85,3.3146]
[1727265276574,3.3138,150.89,150.85,3.3146]
[1727265279674,12.7977,150.9,150.86,3.3144]
[1727265280275,1.3141,150.9,150.86,3.3144]
[1727265280876,4.6277,150.9,150.86,3.3144]
[1727265281777,3.3138,150.89,150.85,11.4846]
[1727265284771,1.3141,150.9,150.85,11.4846]
[1727265285084,12.7978,150.9,150.85,11.4846]
[1727265285579,12.7978,150.9,150.86,3.3144]
[1727265288579,12.7978,150.9,150.85,3.3145]
[1727265288775,12.7978,150.9,150.85,8.17]
[1727265289277,12.7978,150.9,150.86,3.3143]
[1727265289585,9.4841,150.9,150.86,11.4843]
[1727265290481,9.4841,150.9,150.87,3.3142]
[1727265291386,6.6229,151.0,150.89,8.17]
[1727265291584,3.69178671,150.96,150.9,8.17]
[1727265291780,8.17,150.95,150.9,8.17]
[1727265292185,3.3128,150.94,150.9,11.4834]
[1727265292485,8.17,150.93,150.87,8.17]
[1727265292785,11.4833,150.92,150.87,8.17]
[1727265293181,8.17,150.92,150.86,96.58823041]
[1727265293785,3.3134,150.91,150.87,3.3141]
[1727265294180,3.3134,150.91,150.86,96.58823041]
[1727265294576,3.3131,150.93,150.87,8.17]
[1727265294784,8.17,150.92,150.87,8.17]
[1727265295182,11.4832,150.92,150.87,11.4841]
[1727265296081,3.3132,150.92,150.87,11.4841]
[1727265296482,11.4832,150.92,150.87,11.4841]
[1727265296887,2.6913,150.96,150.91,8.17]
[1727265297690,2.6913,150.96,150.92,8.17]
[1727265298290,2.6913,150.96,150.91,3.3132]
[1727265298291,14.1736,150.96,150.91,3.3132]
[1727265298480,14.1736,150.96,150.91,11.4832]
[1727265298685,2.6913,150.96,150.91,8.17]
[1727265298879,1.3451,150.97,150.93,8.17]
[1727265299082,1.3451,150.97,150.87,2.6414]
[1727265299286,3.3123,150.96,150.91,8.17]
[1727265299688,1.3451,150.97,150.91,8.17]
[1727265299886,8.17,150.96,150.91,8.17]
[1727265300285,4.6572,150.97,150.91,11.4833]
[1727265300489,12.8272,150.97,150.91,11.4833]
[1727265300690,1.3451,150.97,150.92,11.4831]
[1727265300890,8.17,150.98,150.92,11.4831]
[1727265301095,2.6987,151.08,150.92,8.17]
[1727265301096,1.3926,151.07,150.92,8.17]
[1727265301297,1.3926,151.07,150.94,8.17]
[1727265301298,11.4818,150.99,150.94,8.17]
[1727265301786,8.17,150.99,150.94,8.17]
[1727265302090,13.39994112,151.07,150.94,8.17]
[1727265302295,8.17,150.99,150.94,11.4827]
[1727265302892,11.4818,150.99,150.94,11.4827]
[1727265303894,3.3118,150.98,150.94,11.4827]
[1727265304092,8.17,150.99,150.94,11.4827]
[1727265304287,11.4817,150.99,150.94,11.4827]
[1727265305689,3.3118,150.98,150.94,11.4827]
[1727265306393,3.3118,150.98,150.94,8.17]
[1727265309389,3.3118,150.98,150.93,3.3128]
[1727265309593,8.17,150.97,150.92,11.483]
[1727265309990,3.3121,150.97,150.94,8.17]
[1727265311189,3.3121,150.97,150.92,11.483]
[1727265311894,3.3123,150.96,150.92,11.483]
[1727265312303,3.3123,150.96,150.93,8.17]
[1727265312596,11.4822,150.97,150.93,8.17]
[1727265312796,3.3122,150.97,150.93,11.4829]
[1727265312995,3.3122,150.97,150.94,8.17]
[1727265322911,8.17,150.99,150.94,11.4826]
[1727265323306,6.6205,151.06,150.94,8.17]
[1727265323307,8.17,150.98,150.94,8.17]
[1727265323504,3.3121,150.97,150.94,8.17]
[1727265323709,3.3121,150.97,150.93,11.4828]
[1727265324908,8.17,150.96,150.88,1.3578]
[1727265325109,8.17,150.96,150.9,8.17]
[1727265325709,3.3126,150.95,150.9,11.4835]
[1727265326105,3.3126,150.95,150.91,8.17]
[1727265326308,8.17,150.93,150.86,88.41823041]
[1727265326509,2.718,150.97,150.87,8.17]
[1727265326510,8.17,150.92,150.87,8.17]
[1727265327412,3.3135,150.91,150.86,91.73253041]
[1727265327617,8.17,150.9,150.86,88.41823041]
[1727265328709,11.4836,150.9,150.86,88.41823041]
[1727265329311,11.4834,150.91,150.87,8.17]
[1727265342219,3.3134,150.91,150.88,8.17]
[1727265342519,8.17,150.94,150.89,8.17]
[1727265343023,8.17,150.94,150.89,11.4836]
[1727265343416,8.17,150.93,150.88,3.3139]
[1727265343620,8.17,150.93,150.88,11.4839]
[1727265344817,3.3132,150.92,150.88,11.4839]
[1727265347828,3.3134,150.91,150.88,8.17]
[1727265348025,8.17,150.92,150.87,11.4841]
[1727265348721,3.3136,150.9,150.87,11.4841]
[1727265349024,3.3136,150.9,150.87,8.17]
[1727265351119,3.3135,150.91,150.87,8.17]
[1727265352924,3.3137,150.9,150.87,8.17]
[1727265354829,3.3135,150.91,150.87,11.4842]
[1727265355027,1.3225,150.96,150.86,88.41823041]
[1727265355221,1.3225,150.96,150.92,8.17]
[1727265355628,4.6349,150.96,150.92,8.17]
[1727265355928,1.3225,150.96,150.92,8.17]
[1727265356125,8.17,150.95,150.91,8.17]
[1727265356830,11.4825,150.95,150.91,8.17]
[1727265367144,8.17,150.94,150.88,8.17]
[1727265367645,1.3225,150.96,150.89,8.17]
[1727265367841,8.17,150.95,150.91,8.17]
[1727265368242,3.3127,150.94,150.89,3.3137]
[1727265368444,3.3127,150.94,150.9,8.17]
[1727265369041,3.3127,150.94,150.9,11.4836]
[1727265369244,8.17,150.95,150.9,8.17]
[1727265369943,3.3128,150.94,150.9,8.17]
[1727265371446,3.3128,150.94,150.9,11.4836]
[1727265374248,8.17,150.95,150.9,8.17]
[1727265374950,3.3127,150.94,150.9,11.4834]
[1727265375747,9.4925,150.96,150.91,8.17]
[1727265376340,12.8049,150.96,150.92,3.313]
[1727265378243,4.6349,150.96,150.92,3.313]
[1727265378440,12.8049,150.96,150.92,3.313]
[1727265383752,6.6175,151.13,150.9,6.6269]
[1727265383954,6.6175,151.13,150.91,6.85812386]
[1727265383955,2.6965,151.03,150.91,6.85812386]
[1727265384151,3.3117,150.99,150.95,11.4823]
[1727265384355,8.17,151.0,150.91,6.85703546]
[1727265384556,8.17,151.0,150.9,1.3213]
[1727265384757,11.4815,151.0,150.95,3.3123]
[1727265384956,8.17,151.0,150.94,8.17]
[1727265385357,8.17,151.0,150.96,3.3121]
[1727265386855,8.17,151.01,150.95,8.17]
[1727265387461,8.17,151.01,150.9,1.3213]
[1727265387657,8.17,150.99,150.94,8.17]
[1727265388667,8.17,150.99,150.9,1.3213]
[1727265388960,11.4816,150.99,150.94,8.17]
[1727265389363,11.4816,150.99,150.94,11.4825]
[1727265389761,8.17,150.99,150.94,8.17]
[1727265390768,8.17,150.99,150.95,3.3125]
[1727265391258,11.4818,150.98,150.9,1.3213]
[1727265391565,11.4818,150.98,150.92,8.17]
[1727265391961,11.4818,150.98,150.93,3.3128]
[1727265395762,8.17,150.98,150.94,11.4827]
[1727265396263,8.17,150.98,150.94,8.17]
[1727265396458,8.17,150.98,150.95,3.3123]
[1727265397867,3.3116,150.99,150.95,3.3123]
[1727265398569,11.4816,150.99,150.95,3.3123]
[1727265399167,8.17,150.99,150.96,3.3121]
[1727265400766,11.4816,150.99,150.96,3.3121]
[1727265400977,8.17,150.98,150.9,1.3213]
[1727265401162,8.17,150.98,150.92,8.17]
[1727265401366,11.482,150.98,150.92,8.17]
[1727265401563,11.482,150.98,150.94,3.3126]
[1727265404062,3.3121,150.97,150.93,3.3128]
[1727265405073,8.17,150.98,150.93,3.3128]
[1727265405074,11.4819,150.98,150.93,3.3128]
[1727265406476,11.4819,150.98,150.94,3.3127]
[1727265409881,3.3119,150.98,150.94,3.3127]
[1727265410078,11.4819,150.98,150.94,3.3127]
[1727265410278,8.17,150.98,150.94,3.3127]
[1727265411169,8.17,150.98,150.95,3.3124]
[1727265411778,8.17,150.98,150.94,3.3126]
[1727265413479,8.17,150.98,150.9,6.85591455]
[1727265413681,8.17,150.98,150.92,8.17]
[1727265414876,3.3122,150.97,150.93,3.3128]
[1727265418886,3.3123,150.96,150.9,88.3891516]
[1727265419087,3.3123,150.96,150.91,8.17]
[1727265419088,11.4823,150.96,150.91,8.17]
[1727265419286,8.17,150.96,150.91,8.17]
[1727265419487,8.17,150.96,150.92,3.3129]
[1727265420894,8.17,150.96,150.93,3.3129]
[1727265421891,8.17,150.94,150.92,3.3131]
[1727265422697,8.17,150.94,150.91,3.3132]
[1727265423095,3.3125,150.95,150.91,3.3132]
[1727265423302,4.648,150.96,150.91,3.3132]
[1727265423497,8.17,150.94,150.91,3.3132]
[1727265423894,4.648,150.96,150.91,3.3132]
[1727265424107,8.17,150.95,150.91,3.3132]
[1727265424300,8.17,150.95,150.92,3.3131]
[1727265427193,12.818,150.96,150.92,3.3131]
[1727265429096,12.818,150.96,150.93,3.3129]
[1727265429298,1.3356,150.96,150.92,8.17]
[1727265429494,2.6819,150.97,150.93,8.17]
[1727265429791,8.17,150.98,150.94,8.17]
[1727265430200,8.17,150.98,150.95,3.3124]
[1727265431403,8.17,150.98,150.94,3.3127]
[1727265432702,8.17,150.97,150.94,3.3127]
[1727265433099,8.17,150.97,150.93,3.3129]
[1727265433703,8.17,150.96,150.93,3.3129]
[1727265434704,2.6041,151.05,150.95,8.17]
[1727265435006,0.99944387,151.04,150.95,8.17]
[1727265435203,8.17,150.99,150.96,3.3122]
[1727265437211,8.17,150.97,150.93,3.3128]
[1727265438103,8.17,150.97,150.94,3.3127]
[1727265438808,8.17,150.98,150.95,3.3124]
[1727265439107,8.17,150.98,150.93,8.17]
[1727265439608,8.17,150.98,150.94,3.3126]
[1727265440405,8.17,150.97,150.94,3.3126]
[1727265442408,8.17,150.97,150.88,10.83307517]
[1727265442599,8.17,150.97,150.92,8.17]
[1727265442803,8.17,150.97,150.93,6.88105628]
[1727265443004,8.17,150.97,150.92,11.483]
[1727265443205,8.17,150.97,150.93,6.88107343]
[1727265443414,8.17,150.97,150.92,8.17]
[1727265443606,8.17,150.97,150.93,6.88190873]
[1727265443808,8.17,150.97,150.92,8.17]
[1727265444004,8.17,150.97,150.93,6.88195634]
[1727265444215,8.17,150.97,150.92,8.17]
[1727265444510,8.17,150.97,150.93,6.88286405]
[1727265444708,8.17,150.97,150.92,8.17]
[1727265444914,11.4822,150.97,150.93,10.19528783]
[1727265445399,11.4822,150.97,150.93,3.3129]
[1727265446706,8.17,150.96,150.92,11.483]
[1727265446900,8.17,150.96,150.93,6.88408012]
[1727265447096,8.17,150.96,150.92,11.483]
[1727265447298,8.17,150.96,150.93,6.88423729]
[1727265447506,8.17,150.96,150.92,11.483]
[1727265447707,4.6209,150.98,150.93,6.88434557]
[1727265447899,8.17,150.97,150.92,8.17]
[1727265448103,8.17,150.97,150.93,6.88428145]
[1727265448305,8.17,150.97,150.93,11.4827]
[1727265448505,4.6209,150.98,150.93,11.4827]
[1727265448712,12.7909,150.98,150.93,11.4827]
[1727265449607,12.7909,150.98,150.94,3.3126]
[1727265450008,1.3091,150.98,150.94,8.17]
[1727265450206,1.3091,150.98,150.95,3.3124]
[1727265451310,1.3091,150.98,150.94,8.17]
[1727265451611,1.3091,150.98,150.94,11.4826]
[1727265455814,4.6209,150.98,150.94,11.4826]
[1727265459414,1.3091,150.98,150.94,11.4826]
[1727265459917,12.7524,150.99,150.95,3.3125]
[1727265460321,9.4407,150.99,150.95,3.3125]
[1727265461322,11.4815,151.0,150.95,3.3125]
[1727265463625,8.17,150.99,150.95,3.3125]